bitfinex/quotes_SOLUSD_20251223
["timestamp","ask_amount","ask_price","bid_price","bid_amount"]
[1766515282626,8.7792493,124.09,124.07,1.89403118]
[1766515283342,8.7792493,124.09,124.05,0.71]
[1766515283717,8.7792493,124.09,124.06,1.89403118]
[1766515285937,8.7792493,124.09,124.03,22.78226841]
[1766515285938,2.61403118,124.08,124.03,22.78226841]
[1766515286243,8.77804074,124.1,124.07,1.89403118]
[1766515286463,0.72,124.09,124.06,2.60403118]
[1766515286649,0.72,124.09,124.06,1.89403118]
[1766515287146,0.72,124.08,124.05,1.89403118]
[1766515287445,0.72,124.08,124.04,0.71]
[1766515287628,0.72,124.08,124.04,1.89403118]
[1766515288236,8.77995956,124.08,124.04,2.60403118]
[1766515288546,8.05995956,124.08,124.05,2.60403118]
[1766515288742,8.05847568,124.1,124.07,1.89403118]
[1766515288964,8.77847568,124.1,124.07,1.89403118]
[1766515289243,8.77847568,124.1,124.06,2.60403118]
[1766515289438,0.72,124.09,124.06,1.89403118]
[1766515289824,0.72,124.09,124.06,2.60403118]
[1766515290628,0.72,124.09,124.06,0.71]
[1766515290846,0.72,124.09,124.06,2.60403118]
[1766515291047,8.77876421,124.09,124.06,2.60403118]
[1766515293149,8.77876421,124.09,124.06,1.89403118]
[1766515293942,8.77876421,124.09,124.06,2.57403118]
[1766515294123,8.77876421,124.09,124.06,0.68]
[1766515294326,8.77876421,124.09,124.06,2.57403118]
[1766515295244,8.77876421,124.09,124.06,1.89403118]
[1766515296328,8.77876421,124.09,124.06,2.57403118]
[1766515296951,8.77876421,124.09,124.06,0.68]
[1766515297252,8.77876421,124.09,124.06,2.57403118]
[1766515297852,0.72,124.09,124.07,1.89403118]
[1766515298352,8.05699436,124.12,124.08,1.89403118]
[1766515298535,8.05477245,124.15,124.12,0.71]
[1766515298728,8.05477245,124.15,124.12,2.60403118]
[1766515298937,0.66,124.16,124.13,1.89403118]
[1766515299238,8.7139698,124.17,124.14,1.89403118]
[1766515299443,0.66,124.17,124.14,1.89403118]
[1766515299755,23.43286063,124.18,124.14,2.60403118]
[1766515300085,0.66,124.17,124.14,2.60403118]
[1766515302650,0.66,124.17,124.14,0.71]
[1766515302848,0.66,124.17,124.14,2.60403118]
[1766515303155,0.66,124.16,124.11,8.76694017]
[1766515303337,0.66,124.16,124.13,1.89403118]
[1766515304658,8.71477245,124.15,124.12,2.60403118]
[1766515305958,8.71477245,124.15,124.12,3.66458822]
[1766515307958,0.66,124.15,124.13,2.95458822]
[1766515310558,8.71483009,124.15,124.11,0.71]
[1766515310768,28.19176122,124.15,124.09,11.24353966]
[1766515310979,28.19176122,124.15,124.09,0.71]
[1766515310980,3.61458822,124.13,124.09,0.71]
[1766515311273,0.66,124.09,124.05,0.71]
[1766515311476,0.66,124.09,124.05,3.66458822]
[1766515312039,8.71883578,124.09,124.05,3.66458822]
[1766515312437,8.71883578,124.09,124.05,0.71]
[1766515314890,11.013424,124.09,124.05,0.71]
[1766515315078,11.673424,124.09,124.05,0.71]
[1766515315281,0.66,124.08,124.05,0.71]
[1766515316985,8.71933762,124.08,124.05,0.71]
[1766515317288,0.66,124.08,124.05,0.71]
[1766515318605,22.77826588,124.1,124.05,0.71]
[1766515318760,25.7328541,124.1,124.05,0.71]
[1766515318959,11.67388618,124.09,124.05,0.71]
[1766515319264,0.66,124.08,124.05,0.71]
[1766515320284,0.66,124.06,124.02,0.71]
[1766515320865,3.61458822,124.06,124.02,0.71]
[1766515321375,0.66,124.06,124.02,2.95458822]
[1766515321578,0.66,124.06,124.03,0.71]
[1766515321787,2.95458822,124.1,124.04,0.71]
[1766515321788,0.66,124.1,124.04,0.71]
[1766515321973,0.66,124.09,124.05,0.71]
[1766515322986,11.67376162,124.09,124.05,0.71]
[1766515323193,0.66,124.08,124.05,0.71]
[1766515323766,0.66,124.08,124.03,3.66458822]
[1766515324008,3.61458822,124.08,124.03,3.66458822]
[1766515324360,0.66,124.07,124.03,3.66458822]
[1766515324563,0.66,124.07,124.04,0.71]
[1766515324765,0.66,124.06,124.02,14.10226118]
[1766515325182,0.66,124.06,124.03,0.71]
[1766515325468,11.01481801,124.07,124.03,0.71]
[1766515325469,8.06022979,124.07,124.04,0.71]
[1766515325789,0.66,124.13,124.06,2.95458822]
[1766515326093,0.66,124.11,124.07,2.95458822]
[1766515326989,8.71767163,124.11,124.06,2.95458822]
[1766515327187,11.67225985,124.11,124.06,2.95458822]
[1766515327487,11.67225985,124.11,124.07,2.95458822]
[1766515327685,8.05767163,124.11,124.07,2.95458822]
[1766515327875,0.68,124.1,124.07,2.95458822]
[1766515328399,0.68,124.1,124.06,2.95458822]
[1766515328400,0.68,124.09,124.06,2.95458822]
[1766515328590,0.68,124.09,124.05,13.39226118]
[1766515328791,0.68,124.08,124.05,13.39226118]
[1766515328990,8.73932123,124.08,124.05,13.39226118]
[1766515329181,0.68,124.08,124.05,13.39226118]
[1766515330389,0.68,124.08,124.05,10.43767296]
[1766515330590,0.68,124.08,124.05,13.39226118]
[1766515330893,0.68,124.07,124.04,14.72]
[1766515331094,0.68,124.06,124.01,8.0635658]
[1766515331292,0.68,124.06,124.03,2.95458822]
[1766515331691,3.63458822,124.06,124.01,11.01815402]
[1766515331875,3.63458822,124.06,124.02,2.95458822]
[1766515331876,0.68,124.05,124.02,2.95458822]
[1766515332081,0.68,124.05,124.02,7.69471907]
[1766515332795,15.75479387,124.07,124.02,7.69471907]
[1766515333000,0.68,124.07,124.05,7.69471907]
[1766515333406,8.73956169,124.08,124.05,7.69471907]
[1766515334104,8.73956169,124.08,124.04,7.69471907]
[1766515337305,8.05956169,124.08,124.04,7.69471907]
[1766515337607,0.68,124.07,124.04,7.69471907]
[1766515338500,0.68,124.07,124.03,15.75690889]
[1766515339407,8.7399948,124.07,124.03,7.69471907]
[1766515339709,0.68,124.06,124.03,7.69471907]
[1766515340005,0.68,124.06,124.02,7.69471907]
[1766515340193,0.68,124.06,124.02,15.75787959]
[1766515341300,0.68,124.06,124.02,8.06316052]
[1766515341506,0.68,124.06,124.03,7.69471907]
[1766515345716,0.68,124.06,124.02,8.06316052]
[1766515346021,0.68,124.06,124.03,7.69471907]
[1766515350222,42.39239203,124.11,124.02,22.78316052]
[1766515350223,0.68,124.09,124.02,22.78316052]
[1766515350413,0.68,124.08,124.06,7.69471907]
[1766515351998,0.68,124.08,124.06,2.95773956]
[1766515353509,0.66,124.09,124.05,8.06119439]
[1766515353710,0.66,124.09,124.07,2.95773956]
[1766515354055,0.66,124.09,124.05,2.95773956]
[1766515354708,0.66,124.09,124.06,2.95773956]
[1766515355918,0.66,124.09,124.07,2.95773956]
[1766515356825,0.65,124.11,124.08,2.95773956]
[1766515357206,0.65,124.11,124.06,8.06051218]
[1766515357207,0.65,124.11,124.07,2.95773956]
[1766515357408,0.65,124.11,124.08,2.95773956]
[1766515358712,22.77734364,124.12,124.08,2.95773956]
[1766515358909,0.65,124.13,124.11,2.95773956]
[1766515360724,0.65,124.12,124.09,2.95773956]
[1766515361023,0.65,124.12,124.1,2.95773956]
[1766515361432,0.65,124.12,124.08,2.95773956]
[1766515362345,0.65,124.11,124.08,2.95773956]
[1766515363331,0.65,124.11,124.07,2.95773956]
[1766515363711,0.65,124.11,124.08,2.95773956]
[1766515364330,8.70753342,124.11,124.08,2.95773956]
[1766515365932,8.70753342,124.11,124.06,33.21819829]
[1766515366112,8.70753342,124.11,124.08,1.8922336]
[1766515366733,0.65,124.1,124.06,25.15767296]
[1766515367039,0.65,124.09,124.06,12.32990656]
[1766515367711,0.65,124.09,124.05,1.8922336]
[1766515367910,0.65,124.08,124.03,22.78232212]
[1766515368132,0.65,124.06,124.03,16.6122336]
[1766515368528,0.65,124.06,124.03,1.8922336]
[1766515369625,0.65,124.06,124.02,1.8922336]
[1766515369925,0.65,124.06,124.01,1.8922336]
[1766515369926,0.65,124.04,124.01,1.8922336]
[1766515370131,0.65,124.04,124.02,1.8922336]
[1766515372938,0.65,124.04,124.02,0.4522336]
[1766515373237,0.65,124.04,124.01,1.8922336]
[1766515374540,0.65,124.04,124.01,2.5922336]
[1766515374721,8.71197588,124.04,124.01,1.8922336]
[1766515375040,0.65,124.03,124.01,1.8922336]
[1766515375924,8.71197588,124.04,124.01,1.8922336]
[1766515376122,0.65,124.03,124.01,1.8922336]
[1766515377148,0.65,124.02,124.0,0.2]
[1766515379078,10.43767296,124.06,124.01,2.5922336]
[1766515379348,0.65,124.05,124.02,1.8922336]
[1766515379650,0.65,124.05,124.02,0.7]
[1766515379947,0.65,124.06,124.02,2.5922336]
[1766515380123,8.71126561,124.05,124.02,1.8922336]
[1766515380332,0.65,124.04,124.01,2.5922336]
[1766515381333,8.71193793,124.04,124.01,2.5922336]
[1766515384666,8.71193793,124.04,124.02,1.8922336]
[1766515385551,8.71193793,124.04,124.01,2.5922336]
[1766515388354,8.71193793,124.04,124.0,0.2]
[1766515388355,0.7,124.03,124.0,0.2]
[1766515388557,0.7,124.02,124.0,0.2]
[1766515390660,8.76344345,124.02,124.0,0.2]
[1766515393260,0.7,124.01,124.0,0.2]
[1766515395571,8.76386581,124.01,124.0,0.2]
[1766515396466,8.76386581,124.01,124.0,1e-08]
[1766515396667,0.7,124.0,123.97,0.2]
[1766515397050,0.7,124.0,123.97,2.7722336]
[1766515397372,8.76386581,124.01,123.98,2.5722336]
[1766515399571,8.76386581,124.01,123.98,0.68]
[1766515401583,8.76386581,124.01,123.98,2.5722336]
[1766515402163,8.76386581,124.01,123.98,0.68]
[1766515402891,0.7,124.0,123.97,0.2]
[1766515403856,44.83576395,124.01,123.97,1e-08]
[1766515403857,1.8922336,123.99,123.97,1e-08]
[1766515404088,2.5922336,123.98,123.97,1e-08]
[1766515404279,10.65805066,123.98,123.97,1e-08]
[1766515405767,30.12259332,123.98,123.95,0.2]
[1766515406058,0.7,123.97,123.95,0.2]
[1766515406673,28.23035972,123.98,123.95,0.2]
[1766515406863,8.06581706,123.98,123.95,0.88]
[1766515407069,8.76581706,123.98,123.95,0.88]
[1766515407580,0.7,123.97,123.95,0.2]
[1766515408285,8.7666613,123.97,123.95,0.2]
[1766515411272,0.7,124.02,123.97,0.68]
[1766515411577,0.7,124.02,123.98,1.8922336]
[1766515411787,0.7,124.0,123.97,2.5722336]
[1766515413372,8.7648801,124.0,123.97,2.5722336]
[1766515415174,0.7,123.99,123.96,1.8922336]
[1766515415875,0.7,123.99,123.96,2.5722336]
[1766515416071,8.76537578,123.99,123.96,0.68]
[1766515416271,8.76537578,123.99,123.96,2.5722336]
[1766515416515,31.29490347,124.03,123.99,0.68]
[1766515416696,1.0,141.4,124.02,2.6022336]
[1766515416697,8.76061583,124.06,124.02,2.6022336]
[1766515416869,23.48061583,124.06,124.03,1.8922336]
[1766515417065,0.7,124.05,124.02,1.8922336]
[1766515417498,0.7,124.05,124.01,2.6022336]
[1766515418186,8.06191551,124.04,124.01,2.6022336]
[1766515418793,8.06191551,124.04,124.02,1.8922336]
[1766515419296,8.76132877,124.05,124.02,1.8922336]
[1766515421067,8.06132877,124.05,124.02,1.8922336]
[1766515421267,8.74132877,124.05,124.02,1.8922336]
[1766515421782,8.06132877,124.05,124.02,1.8922336]
[1766515421981,8.74132877,124.05,124.02,1.8922336]
[1766515422393,0.68,124.04,124.02,1.8922336]
[1766515423691,8.06132877,124.05,124.02,1.8922336]
[1766515423891,8.74132877,124.05,124.02,1.8922336]
[1766515424106,23.46062967,124.06,124.03,1.8922336]
[1766515425896,0.68,124.05,124.03,1.8922336]
[1766515426088,0.68,124.05,124.03,2.95909161]
[1766515426288,0.68,124.05,124.02,3.63909161]
[1766515426600,0.68,124.05,124.02,2.95909161]
[1766515426790,8.741285,124.05,124.02,2.95909161]
[1766515427175,8.741285,124.05,124.03,2.95909161]
[1766515428291,8.741285,124.05,124.02,2.95909161]
[1766515428676,8.741285,124.05,124.03,2.95909161]
[1766515432801,8.061285,124.05,124.03,2.95909161]
[1766515433585,8.741285,124.05,124.03,2.95909161]
[1766515434802,8.741285,124.05,124.02,0.68]
[1766515435003,8.741285,124.05,124.02,3.63909161]
[1766515435390,8.741285,124.05,124.01,0.68]
[1766515435587,8.741285,124.05,124.02,3.63909161]
[1766515436488,0.68,124.04,124.01,2.95909161]
[1766515437305,0.68,124.04,124.0,3.63909161]
[1766515437509,0.68,124.03,123.99,2.95909161]
[1766515437917,0.68,124.03,123.99,3.63909161]
[1766515438808,8.74321561,124.02,123.99,3.63909161]
[1766515439003,20.14870024,124.08,124.02,0.68]
[1766515439206,20.14870024,124.08,124.05,2.95909161]
[1766515439409,20.14870024,124.08,124.04,0.68]
[1766515439410,23.10779185,124.08,124.04,3.63909161]
[1766515439591,31.16897312,124.07,124.01,0.68]
[1766515439795,2.95909161,124.06,124.01,3.63909161]
[1766515440105,14.72,124.05,124.02,2.95909161]
[1766515441099,8.06191551,124.04,124.02,2.95909161]
[1766515441291,35.54991537,124.07,124.04,0.68]
[1766515441498,23.46022665,124.07,124.04,3.63909161]
[1766515441822,8.06022665,124.07,124.05,2.95909161]
[1766515441982,15.4,124.09,124.06,3.63909161]
[1766515442185,15.4,124.09,124.07,2.95909161]
[1766515442413,15.4,124.09,124.06,3.63909161]
[1766515442896,15.4,124.09,124.07,2.95909161]
[1766515442897,0.68,124.09,124.07,2.95909161]
[1766515443101,8.73892587,124.09,124.07,2.95909161]
[1766515443800,8.73892587,124.09,124.06,2.95909161]
[1766515443994,8.73892587,124.09,124.05,0.68]
[1766515444199,8.73892587,124.09,124.05,3.63909161]
[1766515446196,0.68,124.08,124.04,0.68]
[1766515446395,0.68,124.08,124.05,2.95909161]
[1766515447089,0.71,124.07,124.02,15.4]
[1766515447316,0.71,124.07,124.03,3.63909161]
[1766515447514,0.71,124.07,124.04,3.63909161]
[1766515450517,8.06009928,124.07,124.04,2.95909161]
[1766515450816,8.06009928,124.07,124.05,3.63909161]
[1766515454614,8.06009928,124.07,124.02,22.78309997]
[1766515454818,8.77009928,124.07,124.04,3.63909161]
[1766515456522,8.77009928,124.07,124.04,0.68]
[1766515456718,8.77009928,124.07,124.04,3.63909161]
[1766515457713,8.77009928,124.07,124.04,0.68]
[1766515457918,8.77009928,124.07,124.04,3.63909161]
[1766515459225,8.77009928,124.07,124.05,2.95909161]
[1766515461419,8.77009928,124.07,124.04,3.63909161]
[1766515462724,0.71,124.06,123.99,37.50309997]
[1766515462900,2.95909161,124.04,123.99,2.95909161]
[1766515463105,2.95909161,124.04,123.98,0.68]
[1766515463106,0.71,124.02,123.98,0.68]
[1766515463424,0.71,124.02,123.98,3.63909161]
[1766515464509,8.06386581,124.01,123.98,3.63909161]
[1766515468205,0.71,123.99,123.95,3.15909161]
[1766515470111,8.775382,123.99,123.96,0.68]
[1766515470532,0.71,123.98,123.95,3.15909161]
[1766515471930,8.775382,123.99,123.95,0.2]
[1766515472120,8.775382,123.99,123.96,2.95909161]
[1766515473338,8.775382,123.99,123.95,3.83909161]
[1766515474739,8.775382,123.99,123.95,0.2]
[1766515474740,0.71,123.98,123.95,0.2]
[1766515476648,8.77595966,123.98,123.95,0.2]
[1766515480743,0.71,123.98,123.96,2.95909161]
[1766515481133,0.71,123.98,123.95,3.85909161]
[1766515481847,8.77590877,123.98,123.95,0.9]
[1766515483148,8.77590877,123.98,123.95,3.85909161]
[1766515487957,8.77590877,123.98,123.95,2.79625596]
[1766515489659,8.77590877,123.98,123.95,0.9]
[1766515489842,0.69,123.97,123.95,0.2]
[1766515490237,0.69,123.97,123.95,0.9]
[1766515490564,8.75590877,123.98,123.95,0.9]
[1766515494464,48.37483074,124.07,123.95,0.9]
[1766515494465,24.2,124.05,123.98,0.7]
[1766515494640,8.75104416,124.06,124.02,0.7]
[1766515494963,0.69,124.05,124.03,1.89625596]
[1766515495165,0.69,124.05,123.99,25.15767296]
[1766515495366,0.69,124.05,124.01,1.89625596]
[1766515495538,0.69,124.05,124.0,2.59625596]
[1766515495539,0.69,124.04,124.0,2.59625596]
[1766515495956,0.69,124.03,123.99,27.05392892]
[1766515496472,0.69,124.02,123.99,27.05392892]
[1766515497469,0.69,124.02,123.99,27.75392892]
[1766515498145,0.69,124.02,123.99,25.85767296]
[1766515498342,0.69,124.02,123.99,13.03392892]
[1766515499267,0.69,124.02,123.99,11.13767296]
[1766515499467,0.69,124.02,123.99,13.03392892]
[1766515500172,0.69,124.02,124.0,1.89625596]
[1766515506475,8.06191551,124.04,124.01,2.59625596]
[1766515506677,8.75191551,124.04,124.02,1.89625596]
[1766515508480,8.75191551,124.04,124.01,2.59625596]
[1766515508782,8.06191551,124.04,124.01,1.89625596]
[1766515509079,0.66,124.03,124.01,1.89625596]
[1766515510667,0.66,124.03,124.0,0.72]
[1766515510866,0.66,124.03,124.01,1.89625596]
[1766515511278,0.66,124.04,124.01,1.89625596]
[1766515513782,8.72195626,124.04,124.0,2.61625596]
[1766515513982,8.72195626,124.04,124.01,1.89625596]
[1766515515690,8.72195626,124.04,124.01,2.61625596]
[1766515515862,0.66,124.03,123.95,0.2]
[1766515516065,0.66,124.01,123.98,1.89625596]
[1766515516465,0.66,124.01,123.99,1.89625596]
[1766515517377,1.89625596,124.01,123.97,1.89625596]
[1766515517689,0.66,124.0,123.97,1.89625596]
[1766515517998,8.72487588,124.0,123.97,1.89625596]
[1766515518188,8.72487588,124.0,123.97,2.61625596]
[1766515519566,8.72487588,124.0,123.97,0.72]
[1766515519873,0.66,123.99,123.95,25.35767296]
[1766515520081,8.06553978,123.99,123.95,16.81625596]
[1766515520380,0.66,123.98,123.95,17.53625596]
[1766515520976,8.72553978,123.99,123.95,17.53625596]
[1766515521485,8.72553978,123.99,123.96,0.72]
[1766515522168,8.72553978,123.99,123.95,17.53625596]
[1766515522694,8.06553978,123.99,123.95,17.53625596]
[1766515522900,0.66,123.97,123.95,0.2]
[1766515524799,8.72651283,123.97,123.95,0.2]
[1766515527398,8.06651283,123.97,123.93,10.63767296]
[1766515527598,0.66,123.96,123.93,0.2]
[1766515527778,8.72651283,123.97,123.94,1.89625596]
[1766515529196,8.72651283,123.97,123.93,0.2]
[1766515529401,8.72651283,123.97,123.94,1.89625596]
[1766515531578,8.72651283,123.97,123.95,1.89625596]
[1766515532179,8.72651283,123.97,123.94,1.89625596]
[1766515532780,8.72712082,123.96,123.94,1.89625596]
[1766515540416,8.72712082,123.96,123.93,0.57]
[1766515540614,8.72712082,123.96,123.93,2.46625596]
[1766515541086,8.72712082,123.96,123.93,0.57]
[1766515541294,8.72712082,123.96,123.93,2.46625596]
[1766515543217,8.72712082,123.96,123.94,1.89625596]
[1766515543403,0.66,123.96,123.94,1.89625596]
[1766515544399,8.72727431,123.96,123.94,1.89625596]
[1766515548734,8.72727431,123.96,123.93,2.46625596]
[1766515550006,8.72727431,123.96,123.93,3.53358875]
[1766515551032,8.72727431,123.96,123.93,0.57]
[1766515551330,8.72727431,123.96,123.93,3.53358875]
[1766515551519,8.06727431,123.96,123.93,3.16358875]
[1766515551703,0.66,123.95,123.93,3.16358875]
[1766515553008,8.72727431,123.96,123.93,3.53358875]
[1766515553516,8.72792862,123.95,123.93,3.16358875]
[1766515555110,0.66,123.95,123.91,14.92]
[1766515555334,0.66,123.95,123.86,0.2]
[1766515555335,0.66,123.94,123.86,0.2]
[1766515555533,10.43767296,123.89,123.82,0.88]
[1766515555732,25.17767296,123.89,123.83,0.68]
[1766515555940,14.74,123.88,123.85,2.96358875]
[1766515556243,14.74,123.95,123.89,0.68]
[1766515556534,0.66,123.95,123.93,2.96358875]
[1766515556761,14.65989407,123.95,123.93,2.96358875]
[1766515556949,14.65989407,123.95,123.94,2.96358875]
[1766515557119,0.66,123.95,123.94,2.96358875]
[1766515557314,0.66,123.95,123.93,2.96358875]
[1766515557315,8.72778121,123.95,123.93,2.96358875]
[1766515557630,8.06778121,123.95,123.93,2.96358875]
[1766515557834,0.66,123.94,123.93,2.96358875]
[1766515558022,0.66,123.94,123.92,2.96358875]
[1766515559211,8.06849483,123.94,123.92,2.96358875]
[1766515559422,0.66,123.93,123.91,2.96358875]
[1766515560140,8.72849483,123.94,123.91,2.96358875]
[1766515561343,2.96358875,123.93,123.86,10.43767296]
[1766515561521,0.66,123.91,123.88,2.96358875]
[1766515562232,15.4,123.91,123.88,2.96358875]
[1766515562624,14.74,123.91,123.88,2.96358875]
[1766515562815,0.66,123.9,123.88,2.96358875]
[1766515563017,14.74,123.91,123.88,2.96358875]
[1766515563223,0.66,123.92,123.89,2.96358875]
[1766515563549,8.73037365,123.91,123.89,2.96358875]
[1766515563931,8.07037365,123.91,123.9,2.96358875]
[1766515564132,8.07037365,123.91,123.89,0.68]
[1766515564435,8.07037365,123.91,123.9,2.96358875]
[1766515565245,8.07000191,123.92,123.9,3.64358875]
[1766515565446,8.07000191,123.92,123.9,0.68]
[1766515565649,8.07000191,123.92,123.9,3.64358875]
[1766515565835,8.07000191,123.92,123.91,2.96358875]
[1766515566033,8.73000191,123.92,123.9,2.96358875]
[1766515566229,8.73000191,123.92,123.89,3.64358875]
[1766515566425,8.73000191,123.92,123.9,2.96358875]
[1766515567753,8.07000191,123.92,123.9,2.96358875]
[1766515567924,8.07000191,123.92,123.9,0.72]
[1766515568121,31.59270184,123.93,123.9,3.68358875]
[1766515568422,8.06931239,123.93,123.91,3.68358875]
[1766515568625,8.06931239,123.93,123.91,0.72]
[1766515568829,8.06931239,123.93,123.91,2.96358875]
[1766515568830,8.77931239,123.93,123.91,2.96358875]
[1766515570521,0.71,123.93,123.89,0.72]
[1766515570744,0.71,123.93,123.91,2.96358875]
[1766515571764,3.67358875,123.92,123.88,3.68358875]
[1766515572051,11.74554292,123.92,123.88,3.68358875]
[1766515572241,11.74554292,123.92,123.88,0.72]
[1766515572444,0.71,123.91,123.88,0.72]
[1766515573447,8.78084336,123.91,123.88,0.72]
[1766515574550,11.74443211,123.91,123.88,0.72]
[1766515578451,11.03462896,123.9,123.88,0.72]
[1766515578647,11.74462896,123.9,123.86,0.72]
[1766515579338,11.03462896,123.9,123.86,0.72]
[1766515580449,3.67358875,123.89,123.82,1.00762397]
[1766515580638,45.95219151,123.9,123.83,8.07552553]
[1766515580839,11.74424947,123.91,123.87,0.72]
[1766515581050,8.07066072,123.91,123.88,3.68358875]
[1766515581359,8.06907124,123.93,123.9,3.68358875]
[1766515581557,8.06907124,123.93,123.91,0.72]
[1766515582461,28.95174936,123.93,123.89,2.96358875]
[1766515582769,28.95174936,123.93,123.9,0.72]
[1766515583567,28.95174936,123.93,123.89,2.96358875]
[1766515583861,28.95174936,123.93,123.89,3.68358875]
[1766515586062,28.95174936,123.93,123.89,0.72]
[1766515586265,28.95174936,123.93,123.89,2.96358875]
[1766515586568,28.24174936,123.93,123.9,3.68358875]
[1766515588168,20.17267812,123.93,123.9,3.68358875]
[1766515589261,20.17267812,123.93,123.9,2.96358875]
[1766515589468,0.71,123.92,123.86,10.43767296]
[1766515589669,0.71,123.92,123.89,2.96358875]
[1766515589976,8.78037365,123.91,123.86,10.43767296]
[1766515590270,8.78037365,123.91,123.87,2.96358875]
[1766515590478,28.95630779,123.91,123.87,2.96358875]
[1766515591462,28.95630779,123.91,123.88,0.72]
[1766515591665,28.95630779,123.91,123.88,3.68358875]
[1766515592849,28.24630779,123.91,123.86,10.43767296]
[1766515593052,28.95630779,123.91,123.88,3.68358875]
[1766515594293,28.95630779,123.91,123.88,2.96358875]
[1766515595162,0.71,123.9,123.87,2.96358875]
[1766515596277,8.07167648,123.89,123.87,0.72]
[1766515596466,8.07167648,123.89,123.87,3.68358875]
[1766515599576,8.77167648,123.89,123.86,10.43767296]
[1766515599783,0.7,123.88,123.85,2.96358875]
[1766515600977,0.7,123.88,123.86,2.96358875]
[1766515601370,0.7,123.88,123.84,14.74]
[1766515601574,8.07297973,123.87,123.86,2.96358875]
[1766515602679,8.77257907,123.88,123.86,2.96358875]
[1766515602875,8.77257907,123.88,123.84,14.74]
[1766515603066,8.77257907,123.88,123.86,2.96358875]
[1766515603580,8.07102502,123.9,123.87,2.96358875]
[1766515603776,8.77102502,123.9,123.88,2.96358875]
[1766515603977,8.77102502,123.9,123.85,11.03751403]
[1766515604164,8.77102502,123.9,123.89,2.96358875]
[1766515604370,8.77102502,123.9,123.85,11.03751403]
[1766515604768,8.77102502,123.9,123.89,2.96358875]
[1766515605063,8.77068188,123.91,123.89,2.96358875]
[1766515605779,8.77068188,123.91,123.86,8.07361886]
[1766515605980,8.77068188,123.91,123.85,11.03755843]
[1766515606188,0.7,123.9,123.88,2.96358875]
[1766515607184,8.77149624,123.9,123.88,2.96358875]
[1766515608082,8.07149624,123.9,123.85,11.03755843]
[1766515608298,0.7,123.89,123.87,2.96358875]
[1766515609157,8.77190022,123.89,123.87,2.96358875]
[1766515609378,8.77190022,123.89,123.84,33.25229679]
[1766515609562,8.77190022,123.89,123.87,2.96358875]
[1766515609953,8.77190022,123.89,123.87,1.89841022]
[1766515610397,8.77190022,123.89,123.85,1.89841022]
[1766515610688,8.77190022,123.89,123.85,9.97263574]
[1766515610986,0.7,123.91,123.88,1.89841022]
[1766515611192,0.7,123.92,123.9,1.89841022]
[1766515612285,8.7697224,123.92,123.9,1.89841022]
[1766515613182,8.7697224,123.92,123.87,22.81274687]
[1766515613361,8.7697224,123.92,123.9,1.89841022]
[1766515613684,8.7697224,123.92,123.87,14.74]
[1766515613987,28.9440284,123.92,123.87,14.74]
[1766515614164,28.9440284,123.92,123.9,1.89841022]
[1766515614780,28.9440284,123.92,123.89,1.89841022]
[1766515614781,28.2440284,123.92,123.89,1.89841022]
[1766515614985,0.7,123.91,123.89,1.89841022]
[1766515615190,0.7,123.91,123.87,14.74]
[1766515615483,0.7,123.91,123.88,1.89841022]
[1766515615677,8.07102502,123.9,123.88,1.89841022]
[1766515618277,8.77102502,123.9,123.88,1.89841022]
[1766515619573,8.07102502,123.9,123.88,1.89841022]
[1766515620274,8.77102502,123.9,123.88,1.89841022]
[1766515620493,28.94858757,123.9,123.87,16.63841022]
[1766515620997,0.7,123.89,123.84,0.80749354]
[1766515621185,0.7,123.89,123.85,1.89841022]
[1766515622008,8.07232805,123.88,123.85,1.89841022]
[1766515622302,8.77232805,123.88,123.85,1.89841022]
[1766515623781,0.7,123.87,123.85,1.89841022]
[1766515624500,8.77232805,123.88,123.85,1.89841022]
[1766515624894,0.7,123.87,123.85,1.89841022]
[1766515625575,8.07232805,123.88,123.85,1.89841022]
[1766515625778,8.77232805,123.88,123.85,1.89841022]
[1766515626599,8.77232805,123.88,123.84,10.43767296]